bitfinex-derivatives/quotes_ETHF0:USTF0_20210703
["timestamp","ask_amount","ask_price","bid_price","bid_amount"]
[1625313237983,5.32570435,2210.2,2209.1,44.1302]
[1625313238635,5.32540894,2210.3,2209.1,44.1302]
[1625313239086,5.32540894,2210.3,2209.9,4.41054]
[1625313239237,14.0805,2210.5,2209.9,7.47784]
[1625313239336,5.32454486,2210.6,2209.9,7.47784]
[1625313239586,2.20527,2210.7,2209.9,7.47784]
[1625313240087,2.20527,2210.7,2209.9,60.03634]
[1625313240187,2.20527,2210.7,2209.9,7.47784]
[1625313243147,1.0,2211.0,2209.9,7.47784]
[1625313243247,2.0,2211.1,2209.9,7.47784]
[1625313243351,2.0,2211.1,2210.4,51.6645]
[1625313243448,2.0,2211.1,2210.4,54.676]
[1625313243553,2.0,2211.1,2210.4,3.0115]
[1625313245052,4.20527,2211.1,2211.0,4.41054]
[1625313245356,4.20527,2211.1,2211.0,2.20527]
[1625313245455,4.20527,2211.1,2209.1,0.9138]
[1625313245561,7.53027,2211.1,2209.1,0.9138]
[1625313245754,12.53027,2211.1,2208.2,5.0]
[1625313245856,1.0,2211.0,2208.2,5.0]
[1625313246318,1.0,2211.0,2208.8,1.0]
[1625313246416,43.6882,2210.0,2208.8,1.0]
[1625313246515,47.4119,2210.0,2208.8,16.468361]
[1625313246917,3.7237,2210.0,2208.0,5.0]
[1625313247119,3.7237,2210.0,2209.9,4.41054]
[1625313247368,3.7237,2210.0,2209.9,2.20527]
[1625313247874,2.20527,2210.2,2209.9,2.20527]
[1625313249180,2.20527,2210.2,2210.1,2.20527]
[1625313250531,52.945,2210.2,2210.1,2.20527]
[1625313251235,56.3761,2210.2,2210.1,2.20527]
[1625313251491,56.3761,2210.2,2210.1,1.13204223]
[1625313251590,56.3761,2210.2,2209.9,2.20527]
[1625313251739,56.3761,2210.2,2209.0,1.0]
[1625313251840,56.3761,2210.2,2208.5,14.7753]
[1625313253240,2.20527,2209.3,2209.2,2.20527]
[1625313255199,4.41054,2209.3,2209.2,2.20527]
[1625313255400,4.41054,2209.3,2209.0,2.20527]
[1625313256048,54.9796,2209.2,2209.0,2.20527]
[1625313257103,57.6085,2209.2,2207.9,15.266]
[1625313257202,2.20527,2208.8,2208.6,2.20527]
[1625313259255,2.20527,2208.7,2208.6,2.20527]
[1625313265278,4.41054,2208.7,2208.6,2.20527]
[1625313266434,8.19024,2208.7,2208.6,2.20527]
[1625313266833,8.19024,2208.7,2207.6,1.0]
[1625313266937,8.19024,2208.7,2206.5,15.273]
[1625313267137,8.19024,2208.7,2206.6,1.0]
[1625313267235,2.20527,2207.9,2207.8,2.20527]
[1625313267534,46.11397,2207.9,2207.8,2.20527]
[1625313270041,2.20527,2207.9,2207.8,2.20527]
[1625313271503,2.20527,2208.2,2207.8,2.20527]
[1625313272111,2.20527,2208.2,2207.8,5.54227]
[1625313273312,2.20527,2208.2,2208.1,2.20527]
[1625313299435,2.20527,2208.2,2207.8,2.20527]
[1625313299585,4.52437,2208.2,2207.8,2.20527]
[1625313300540,54.2078,2207.9,2207.8,2.20527]
[1625313301494,56.41307,2207.9,2206.6,1.0]
[1625313301643,56.41307,2207.9,2206.5,30.7543]
[1625313302953,2.20527,2207.9,2206.5,30.7543]
[1625313303453,2.20527,2207.9,2207.6,2.20527]
[1625313303655,43.82797,2207.9,2207.6,2.20527]
[1625313303757,2.20527,2207.9,2207.6,2.20527]
[1625313304454,2.20527,2207.9,2207.4,2.20527]
[1625313304554,60.15527,2207.9,2207.4,2.20527]
[1625313304804,5.69627,2207.9,2207.4,2.20527]
[1625313305511,2.20527,2207.5,2207.4,4.41054]
[1625313306114,68.7707,2209.2,2207.4,7.07644]
[1625313306260,68.7707,2209.2,2207.4,8.07644]
[1625313306564,68.7707,2209.2,2207.6,42.6121]
[1625313306711,68.7707,2209.2,2207.4,8.07644]
[1625313307312,68.7707,2209.2,2207.4,52.86434]
[1625313307463,68.7707,2209.2,2208.5,2.20527]
[1625313307563,2.20527,2208.6,2208.5,2.20527]
[1625313309570,4.41054,2208.6,2208.5,2.20527]
[1625313309771,58.49694,2208.6,2208.5,2.20527]
[1625313310124,4.41054,2208.6,2208.5,2.20527]
[1625313310223,3.45271143,2209.5,2208.5,2.20527]
[1625313310372,3.45271143,2209.5,2208.5,5.66867]
[1625313310836,18.48499714,2209.8,2208.5,5.66867]
[1625313311334,5.0,2209.7,2208.5,5.66867]
[1625313311438,53.3254,2209.0,2208.5,5.66867]
[1625313311587,2.20527,2208.6,2208.5,5.66867]
[1625313314347,2.20527,2209.1,2208.5,5.66867]
[1625313315653,2.20527,2209.1,2209.0,4.41054]
[1625313316504,2.20527,2209.1,2208.5,3.4634]
[1625313316605,2.20527,2209.1,2207.7,1.8937]
[1625313316703,2.20527,2209.1,2207.7,0.8937]
[1625313317559,2.20527,2209.1,2208.8,2.20527]
[1625313319565,2.20527,2209.1,2209.0,2.20527]
[1625313320116,5.67009029,2209.5,2209.0,2.20527]
[1625313320466,1.86639684,2209.2,2209.0,2.20527]
[1625313321066,1.86645255,2209.1,2209.0,2.20527]
[1625313321620,4.07172255,2209.1,2209.0,2.20527]
[1625313321872,2.20527,2209.1,2209.0,2.20527]
[1625313325882,7.20527,2209.1,2207.3,14.7872]
[1625313326032,7.20527,2209.1,2207.4,1.0]
[1625313326182,50.4305,2208.3,2207.4,1.0]
[1625313326290,50.4305,2208.3,2207.3,14.7872]
[1625313326544,2.9507,2208.3,2207.3,14.7872]
[1625313327455,1.86706968,2208.7,2207.4,1.0]
[1625313327560,1.86684662,2208.8,2207.8,47.5965]
[1625313327708,1.86684662,2208.8,2208.7,4.41054]
[1625313327807,1.86687026,2209.0,2208.7,4.41054]
[1625313328507,1.86686194,2208.9,2208.7,4.41054]
[1625313329658,2.20527,2208.8,2208.7,4.41054]
[1625313329808,58.23017,2208.8,2208.7,4.41054]
[1625313330461,2.20527,2208.8,2208.7,4.41054]
[1625313330966,49.98337,2208.8,2208.7,4.41054]
[1625313331218,2.20527,2208.8,2208.7,4.41054]
[1625313331919,51.38907,2208.8,2208.7,4.41054]
[1625313333420,51.38907,2208.8,2207.3,14.7872]
[1625313333524,51.38907,2208.8,2207.9,1.0]
[1625313333621,51.38907,2208.8,2207.3,14.7872]
[1625313333771,51.38907,2208.8,2208.3,2.20527]
[1625313334122,1.86837223,2208.6,2208.3,2.20527]
[1625313334270,4.34217223,2208.6,2208.3,2.20527]
[1625313334622,1.86839789,2208.5,2208.3,2.20527]
[1625313335474,1.86955746,2208.4,2208.3,2.20527]
[1625313335672,2.20527,2208.4,2208.3,2.20527]
[1625313336675,4.07488622,2208.4,2208.3,2.20527]
[1625313337675,2.20527,2208.4,2208.3,2.20527]
[1625313338729,4.07575698,2208.4,2208.3,2.20527]
[1625313338878,4.07575698,2208.4,2208.0,2.20527]
[1625313339630,1.87169086,2208.1,2208.0,2.20527]
[1625313339779,4.07696086,2208.1,2208.0,2.20527]
[1625313340430,5.4193835,2208.1,2208.0,2.20527]
[1625313340582,7.02421321,2208.1,2208.0,2.20527]
[1625313340731,7.02421321,2208.1,2207.6,2.20527]
[1625313341181,5.68179057,2208.1,2207.6,2.20527]
[1625313341731,2.20527,2207.7,2207.6,2.20527]
[1625313341933,4.07810059,2207.7,2207.6,2.20527]
[1625313343054,1.87283107,2207.8,2207.6,2.20527]
[1625313343204,1.87283107,2207.8,2207.6,5.52577]
[1625313343455,1.87301078,2208.0,2207.6,5.52577]
[1625313343706,1.87301078,2208.0,2207.9,2.20527]
[1625313344459,2.20527,2208.1,2207.9,2.20527]
[1625313345109,1.87335956,2208.0,2207.9,2.20527]
[1625313348826,5.685336,2208.1,2207.9,2.20527]
[1625313349679,2.20527,2208.1,2207.9,2.20527]
[1625313349781,2.20527,2208.1,2208.0,2.20527]
[1625313351337,5.68517407,2208.1,2208.0,2.20527]
[1625313352536,7.02752663,2208.1,2208.0,2.20527]
[1625313353488,7.02752663,2208.1,2207.0,1.0]
[1625313353601,7.02752663,2208.1,2206.5,15.4582]
[1625313353790,4.55057605,2207.8,2206.5,15.4582]
[1625313353893,6.75584605,2207.8,2207.4,2.20527]
[1625313355854,6.75584605,2207.8,2207.7,2.20527]
[1625313356361,2.20527,2207.8,2207.7,2.20527]
[1625313360615,5.68451259,2207.8,2207.7,2.20527]
[1625313360865,2.20527,2207.8,2207.7,2.20527]
[1625313361814,4.63507,2207.8,2207.7,2.20527]
[1625313365274,7.31068618,2207.8,2207.7,2.20527]
[1625313368785,3.47862751,2208.0,2207.7,2.20527]
[1625313369282,1.87237535,2208.1,2207.7,2.20527]
[1625313370035,1.87237535,2208.1,2208.0,2.20527]
[1625313370939,3.47736317,2208.4,2208.0,2.20527]
[1625313371240,1.34236115,2208.3,2208.0,2.20527]
[1625313371338,4.12656115,2208.3,2208.0,2.20527]
[1625313371441,3.47770313,2208.2,2208.0,2.20527]
[1625313372038,3.54771069,2208.1,2208.0,2.20527]
[1625313372288,7.02557157,2208.1,2208.0,2.20527]
[1625313372388,5.68313088,2208.1,2208.0,2.20527]
[1625313372588,2.20527,2208.1,2208.0,2.20527]
[1625313373692,5.68297431,2208.1,2208.0,2.20527]
[1625313374191,2.20527,2208.1,2208.0,2.20527]
[1625313374442,3.47764764,2208.2,2208.0,2.20527]
[1625313374842,3.47754344,2208.3,2208.0,2.20527]
[1625313375244,41.4404,2208.4,2208.0,2.20527]
[1625313375245,3.47758062,2208.1,2208.0,2.20527]
[1625313375343,6.12658062,2208.1,2208.0,2.20527]
[1625313375795,2.649,2208.1,2208.0,2.20527]
[1625313376041,4.85427,2208.1,2208.0,2.20527]
[1625313380068,8.33178383,2208.1,2208.0,2.20527]
[1625313381371,9.67425862,2208.1,2208.0,2.20527]
[1625313382072,6.19674479,2208.1,2208.0,2.20527]
[1625313382323,9.67429472,2208.1,2208.0,2.20527]
[1625313383575,8.33181993,2208.1,2208.0,2.20527]
[1625313384276,4.85427,2208.1,2208.0,2.20527]
[1625313387682,2.20527,2208.1,2208.0,2.20527]
[1625313388032,3.47725349,2208.2,2208.0,2.20527]
[1625313388132,3.47725349,2208.2,2208.1,2.20527]
[1625313388233,3.47700732,2208.3,2208.1,2.20527]
[1625313392895,3.47724049,2208.2,2208.1,2.20527]
[1625313393344,4.81974265,2208.2,2208.1,2.20527]
[1625313393547,1.34250216,2208.2,2208.1,2.20527]
[1625313394146,3.54777216,2208.2,2208.1,2.20527]
[1625313394999,7.82787661,2208.2,2208.1,2.20527]
[1625313395348,3.54777216,2208.2,2208.1,2.20527]
[1625313398506,4.28008292,2208.3,2208.1,2.20527]
[1625313398611,0.39715672,2208.5,2208.1,2.20527]
[1625313398712,6.68658285,2208.7,2208.1,2.20527]
[1625313398813,3.97258285,2208.7,2208.1,7.20527]
[1625313399063,3.97258285,2208.7,2208.6,45.6943]
[1625313399266,6.686342,2208.9,2208.6,48.521]
[1625313399418,8.02361039,2209.1,2208.6,48.521]
[1625313399516,4.27751738,2209.7,2208.6,48.521]
[1625313399717,4.27751738,2209.7,2208.6,2.8267]
[1625313399919,4.27751738,2209.7,2208.7,16.520269]
[1625313400171,4.27751738,2209.7,2208.6,2.8267]
[1625313400323,4.27751738,2209.7,2209.6,7.17144]
[1625313400521,15.3845,2210.7,2209.6,7.17144]
[1625313400722,14.3845,2210.7,2209.6,7.17144]
[1625313400870,53.3523,2210.6,2209.6,7.17144]
[1625313401873,14.3845,2210.7,2209.6,7.17144]
[1625313402225,2.20527,2210.8,2210.7,2.20527]
[1625313402326,49.45317,2210.8,2210.7,2.20527]
[1625313402775,49.45317,2210.8,2210.7,1.13216313]
[1625313404232,51.65844,2210.8,2210.7,1.13216313]
[1625313407292,4.41054,2210.8,2210.7,1.13216313]
[1625313407638,4.41054,2210.8,2210.7,4.34326313]
[1625313409041,2.0,2211.2,2210.7,4.34326313]
[1625313410293,4.20527,2211.2,2211.1,2.20527]
[1625313417868,53.38667,2211.2,2211.1,2.20527]
[1625313418070,4.20527,2211.2,2211.1,2.20527]
[1625313422934,4.20527,2211.2,2211.1,57.12187]
[1625313423035,4.20527,2211.2,2211.1,2.20527]
[1625313424235,2.0,2211.2,2211.1,2.20527]
[1625313426036,5.5813,2211.2,2211.1,2.20527]
[1625313431608,2.0,2211.2,2211.1,4.57077]
[1625313446300,2.0,2211.2,2211.1,2.20527]
[1625313446399,9.71754,2211.2,2211.1,2.20527]
[1625313447104,47.94804,2211.2,2211.1,2.20527]
[1625313447604,47.94804,2211.2,2210.7,1.13216313]
[1625313448409,2.20527,2210.8,2210.7,3.33743313]
[1625313453236,4.20527,2211.2,2210.7,3.33743313]
[1625313453337,4.20527,2211.2,2210.7,48.98183313]
[1625313453788,4.20527,2211.2,2210.7,5.76303313]
[1625313454441,4.20527,2211.2,2211.1,2.20527]
[1625313457800,2.0,2211.2,2211.1,2.20527]
[1625313464111,10.7122,2211.2,2210.7,1.13216313]
[1625313464560,45.96944,2210.8,2210.7,1.13216313]
[1625313465462,4.41054,2210.8,2210.7,1.13216313]
[1625313468471,44.15634,2210.8,2210.7,1.13216313]
[1625313469121,4.41054,2210.8,2210.7,1.13216313]
[1625313469323,6.87624,2210.8,2210.7,1.13216313]
[1625313473545,2.0,2211.2,2210.7,4.77816313]
[1625313474550,4.20527,2211.2,2211.1,2.20527]
[1625313481267,5.53458313,2211.2,2211.1,2.20527]
[1625313483177,4.20527,2211.2,2211.1,2.20527]
[1625313485828,53.35377,2211.2,2211.1,2.20527]
[1625313486528,4.20527,2211.2,2211.1,2.20527]
[1625313487041,8.47831687,2211.2,2211.1,2.20527]
[1625313488042,56.71101687,2211.2,2211.1,2.20527]
[1625313488596,58.0517501,2211.2,2211.1,2.20527]
[1625313489547,53.77870323,2211.2,2211.1,2.20527]
[1625313490603,5.54600323,2211.2,2211.1,2.20527]
[1625313493420,10.89422683,2211.2,2211.1,2.20527]
[1625313494724,10.89422683,2211.2,2211.1,5.69067]
[1625313495575,5.54600323,2211.2,2211.1,5.69067]
[1625313496384,10.89606287,2211.2,2211.1,5.69067]
[1625313497285,5.54600323,2211.2,2211.1,5.69067]
[1625313497586,10.8983251,2211.2,2211.1,5.69067]
[1625313497936,10.90884132,2211.2,2211.1,5.69067]
[1625313498239,10.90884132,2211.2,2211.1,3.4854]
[1625313498342,8.70357132,2211.2,2211.1,3.4854]
[1625313498642,3.34073323,2211.2,2211.1,3.4854]
[1625313498740,3.34073323,2211.2,2211.1,5.69067]
[1625313499341,7.62271822,2211.2,2211.1,5.69067]
[1625313500292,3.34073323,2211.2,2211.1,5.69067]
[1625313510774,1.34073323,2211.2,2211.1,5.69067]
[1625313511123,3.34073323,2211.2,2211.1,5.69067]
[1625313516992,7.62226934,2211.2,2211.1,5.69067]
[1625313526329,10.01176934,2211.2,2211.1,5.69067]
[1625313527498,5.73023323,2211.2,2211.1,5.69067]
[1625313527599,3.34073323,2211.2,2211.1,5.69067]
[1625313537380,3.34073323,2211.2,2211.1,2.20527]
[1625313537480,7.62099118,2211.2,2211.1,2.20527]
[1625313540936,3.34073323,2211.2,2211.1,2.20527]
[1625313541337,7.62131536,2211.2,2211.1,2.20527]
[1625313541587,3.34073323,2211.2,2211.1,2.20527]
[1625313543241,38.6618,2210.9,2210.7,1.13216313]
[1625313543789,3.47838248,2210.8,2210.7,1.13216313]
[1625313544092,4.81908618,2210.8,2210.7,1.13216313]
[1625313544441,3.47838248,2210.8,2210.7,1.13216313]
[1625313545148,7.88892248,2210.8,2210.7,1.13216313]
[1625313545410,10.27142248,2210.8,2210.7,1.13216313]
[1625313545911,6.79304,2210.8,2210.7,1.13216313]
[1625313546010,8.13377079,2210.8,2210.7,1.13216313]
[1625313546112,60.55527079,2210.8,2210.7,1.13216313]
[1625313546711,8.13377079,2210.8,2210.7,1.13216313]
[1625313548777,11.61215899,2210.8,2210.7,1.13216313]
[1625313550384,10.2714282,2210.8,2210.7,1.13216313]
[1625313550835,11.61215275,2210.8,2210.7,1.13216313]
[1625313551286,8.13376455,2210.8,2210.7,1.13216313]
[1625313552990,6.79304,2210.8,2210.7,1.13216313]
[1625313553195,10.27141115,2210.8,2210.7,1.13216313]
[1625313553391,11.61211507,2210.8,2210.7,1.13216313]
[1625313554493,8.13374392,2210.8,2210.7,1.13216313]
[1625313555344,4.28109318,2211.0,2210.7,1.13216313]
[1625313555698,3.4783337,2210.9,2210.8,47.8712]
[1625313555794,3.4783337,2210.9,2210.7,1.13216313]
[1625313556046,2.67561877,2210.8,2210.7,1.13216313]
[1625313561384,4.01362094,2210.8,2210.7,1.13216313]
[1625313561836,2.67561877,2210.8,2210.7,1.13216313]
[1625313562087,4.01382548,2210.8,2210.7,1.13216313]
[1625313570074,4.01382548,2210.8,2210.7,56.04266313]
[1625313570477,4.01382548,2210.8,2210.7,1.13216313]
[1625313573337,4.01498773,2210.9,2210.7,1.13216313]
[1625313576444,4.01498773,2210.9,2210.8,50.2234]
[1625313576546,5.47957263,2211.2,2210.8,50.2234]
[1625313577097,2.0,2211.2,2210.8,50.2234]
[1625313577346,2.0,2211.2,2211.1,2.20527]
[1625313577846,0.0001,2211.2,2211.1,2.20527]
[1625313577946,0.0001,2211.2,2211.1,5.92007]
[1625313603028,6.625e-05,2211.9,2211.1,27.222256]
[1625313603136,3.4707831,2212.2,2211.1,27.222256]
[1625313603327,2.8989831,2212.2,2211.1,27.222256]
[1625313603440,0.9859831,2212.2,2211.1,27.222256]
[1625313603536,4.27179137,2212.4,2212.1,4.41054]
[1625313603683,4.27103463,2212.9,2212.1,7.75034]
[1625313604083,1.33969158,2212.8,2212.1,7.75034]
[1625313604485,1.33963436,2213.1,2212.1,7.75034]
[1625313604687,2.25393436,2213.1,2212.1,8.64854]
[1625313604886,2.25393436,2213.1,2212.1,7.75034]
[1625313605292,1.33960939,2213.0,2212.1,7.75034]
[1625313605537,1.33960939,2213.0,2212.9,4.41054]
[1625313606443,1.3395055,2213.1,2212.9,4.41054]
[1625313607895,1.3394583,2213.3,2212.9,4.41054]
[1625313609352,5.0,2213.4,2212.9,4.41054]
[1625313609600,5.0,2213.4,2213.3,4.82217]
[1625313614695,15.648,2214.0,2213.3,4.82217]
[1625313614779,3.10697,2214.3,2213.3,4.82217]
[1625313615135,3.10697,2214.3,2213.3,2.20527]
[1625313615232,5.0,2213.4,2213.3,2.20527]
[1625313615382,8.6782,2213.4,2213.3,2.20527]
[1625313618335,8.6782,2213.4,2213.3,0.63887]
[1625313618486,8.6782,2213.4,2212.9,2.20527]
[1625313618585,9.586,2213.4,2212.9,2.20527]
[1625313618936,14.586,2213.4,2212.9,2.20527]
[1625313619087,14.586,2213.4,2211.1,1.0]
[1625313619236,14.586,2213.4,2211.2,16.4654]
[1625313619637,5.09067,2212.5,2212.4,7e-05]
[1625313619739,5.09067,2212.5,2211.2,15.4654]
[1625313619837,10.09067,2212.5,2211.2,15.4654]
[1625313620238,5.09067,2212.5,2211.2,15.4654]
[1625313620343,10.09067,2212.5,2211.2,15.4654]
[1625313620794,5.09067,2212.5,2211.2,15.4654]
[1625313621043,5.09067,2212.5,2210.2,1.0]
[1625313621198,5.09067,2212.5,2209.2,4.759]
[1625313621294,1.0,2212.4,2209.3,15.3971]
[1625313621448,6.0,2212.4,2209.3,15.3971]
[1625313621649,2.20527,2210.1,2210.0,2.20527]
[1625313621803,5.0,2212.2,2210.0,2.20527]
[1625313621947,14.5779,2212.3,2210.0,2.20527]
[1625313622099,14.5779,2212.3,2210.0,7.20527]
[1625313622199,14.5779,2212.3,2210.0,11.96427]
[1625313622849,1.0,2212.2,2210.0,11.96427]
[1625313623654,2.20527,2211.7,2211.5,2.20527]
[1625313623754,1.0,2211.6,2211.5,5.98997]
[1625313624509,1.0,2211.6,2211.5,3.7847]
[1625313624757,1.0,2211.6,2211.3,2.20527]
[1625313625614,2.20527,2211.4,2211.3,2.20527]
[1625313625715,3.20527,2211.4,2211.3,2.20527]
[1625313625914,3.20527,2211.4,2210.9,2.20527]
[1625313627677,3.20527,2211.0,2210.9,2.20527]
[1625313628082,3.20527,2211.0,2210.0,4.759]
[1625313628428,2.20527,2211.0,2210.0,4.759]
[1625313628881,2.20527,2211.0,2210.1,16.351493]
[1625313629133,2.20527,2211.0,2210.1,18.915693]
[1625313629234,1.0,2210.9,2210.1,2.5642]
[1625313629740,1.0,2210.9,2210.7,2.20527]
[1625313631643,2.20527,2210.8,2210.7,2.20527]
[1625313631743,3.20527,2210.8,2210.7,2.20527]
[1625313631993,3.20527,2210.8,2210.4,2.20527]
[1625313633548,3.20527,2210.8,2209.0,3.7336]
[1625313633798,3.20527,2210.1,2210.0,2.20527]
[1625313635202,3.20527,2210.1,2209.8,2.20527]
[1625313635759,3.20527,2209.9,2209.8,2.20527]
[1625313638367,2.20527,2209.9,2209.8,2.20527]
[1625313638466,2.20527,2210.1,2209.8,2.20527]
[1625313638615,2.20527,2210.1,2209.8,5.16017]
[1625313639717,2.20527,2210.1,2210.0,2.20527]
[1625313643572,3.20527,2210.1,2210.0,2.20527]
[1625313644576,2.20527,2210.1,2210.0,2.20527]
[1625313645728,3.20527,2210.1,2210.0,2.20527]
[1625313648684,3.20527,2210.1,2208.9,3.166]
[1625313649844,3.20527,2210.1,2209.8,2.20527]
[1625313651805,2.20527,2209.9,2209.8,2.20527]
[1625313652556,15.2736,2211.3,2209.8,2.20527]
[1625313652707,1.0,2211.2,2209.8,4.58777]
[1625313653766,1.0,2211.2,2210.5,2.20527]
[1625313653916,3.20527,2210.6,2210.5,2.20527]
[1625313654717,3.20527,2210.6,2209.2,15.1747]
[1625313655872,2.20527,2209.9,2209.8,2.20527]
[1625313655971,3.20527,2209.9,2209.8,2.20527]
[1625313657376,1.0,2209.9,2209.8,2.20527]
[1625313657878,3.20527,2209.9,2209.8,2.20527]
[1625313660583,44.42907,2209.9,2209.8,2.20527]
[1625313660980,3.20527,2209.9,2209.8,2.20527]
[1625313666868,47.71267,2209.9,2209.8,2.20527]
[1625313667872,3.20527,2209.9,2209.8,2.20527]
[1625313669524,2.20527,2209.9,2209.8,2.20527]
[1625313670329,2.20527,2209.9,2209.8,4.65417]
[1625313688134,2.20527,2210.1,2209.8,4.65417]
[1625313690088,2.20527,2210.1,2210.0,2.20527]
[1625313693650,3.20527,2210.1,2210.0,2.20527]
[1625313710416,3.20527,2210.1,2209.3,2.6263338]
[1625313711019,53.2589,2209.4,2208.9,2.62390791]
[1625313711170,1.0,2209.3,2208.9,2.62390791]
[1625313711370,1.0,2209.3,2208.8,2.62656575]
[1625313711720,1.0,2209.3,2208.6,2.62786767]
[1625313712173,4.41054,2208.7,2208.5,2.62860874]
[1625313712323,1.0,2208.6,2208.5,2.62860874]
[1625313712576,1.0,2208.6,2208.1,4.83491955]
[1625313712879,1.0,2208.6,2208.1,2.20527]
[1625313712973,50.5144,2208.5,2208.1,2.20527]
[1625313713123,1.0,2208.4,2208.1,2.20527]
[1625313714178,4.41054,2208.2,2208.1,2.20527]
[1625313717786,8.44494,2208.2,2207.8,2.62831931]
[1625313718140,8.44494,2208.2,2207.5,2.62914822]
[1625313718244,6.23967,2208.2,2207.7,2.20527]
[1625313719147,6.23967,2208.2,2207.5,2.20527]
[1625313720252,2.20527,2207.6,2207.5,2.20527]
[1625313720354,3.20527,2207.6,2207.5,2.20527]
[1625313720550,2.20527,2207.6,2207.5,2.20527]
[1625313721151,3.20527,2207.6,2207.5,2.20527]
[1625313724522,5.59107,2207.6,2207.5,2.20527]
[1625313724922,5.59107,2207.6,2207.0,2.62579571]
[1625313725323,5.59107,2207.6,2206.9,2.62537877]
[1625313725724,5.59107,2207.6,2206.8,2.62381926]
[1625313726276,2.20527,2207.1,2207.0,2.20527]
[1625313727879,1.0,2207.2,2207.0,2.20527]
[1625313728384,3.20527,2207.1,2207.0,2.20527]
[1625313731087,6.76827,2207.1,2207.0,2.20527]
[1625313731288,6.76827,2207.1,2205.9,2.62043429]
[1625313731745,6.76827,2207.1,2205.8,2.62084675]
[1625313732287,2.20527,2206.4,2206.3,2.20527]
[1625313732387,3.20527,2206.4,2206.3,2.20527]
[1625313733742,59.22247,2206.4,2206.3,2.20527]
[1625313734002,3.20527,2206.4,2206.3,2.20527]
[1625313734344,4.41054,2206.4,2206.3,2.20527]
[1625313734793,1.0,2206.9,2206.3,2.20527]
[1625313734892,56.5706,2206.8,2206.3,2.20527]
[1625313734991,1.0,2206.7,2206.3,2.20527]
[1625313735093,3.6593,2207.0,2206.3,2.20527]
[1625313735195,5.0,2207.6,2206.3,2.20527]
[1625313735395,1.0,2207.5,2206.3,2.20527]
[1625313736392,2.20527,2206.7,2206.6,2.20527]
[1625313736496,2.20527,2206.7,2206.6,5.93967]
[1625313737096,1.90618699,2207.5,2206.6,5.93967]
[1625313737402,0.90618699,2207.5,2206.6,5.93967]
[1625313737650,0.90618699,2207.5,2207.3,48.7936]
[1625313737803,0.90618699,2207.5,2207.3,52.1541]
[1625313738402,0.90618699,2207.5,2207.4,4.41054]
[1625313744087,8.699e-05,2207.5,2207.4,4.41054]
[1625313747548,8.699e-05,2207.5,2207.4,7.16804]
[1625313749700,8.699e-05,2207.5,2207.4,4.96277]
[1625313749799,8.699e-05,2207.5,2207.4,2.7575]
[1625313750400,8.699e-05,2207.5,2207.4,7.16804]
[1625313758486,7.8075,2208.8,2207.4,12.16804]
[1625313758586,3.55720984,2210.3,2207.4,12.16804]
[1625313758745,0.9149,2209.0,2207.4,12.16804]
[1625313758838,2.65170984,2210.3,2207.4,12.16804]
[1625313758987,2.65170984,2210.3,2209.0,50.7629]
[1625313759141,2.65170984,2210.3,2209.1,5.0]
[1625313759237,2.65095864,2211.5,2209.1,5.0]
[1625313759539,2.65095864,2211.5,2209.2,16.426017]
[1625313759637,2.65095864,2211.5,2209.3,5.0]
[1625313759840,2.40725864,2211.5,2209.3,5.0]
[1625313759942,2.56974623,2211.7,2209.3,5.0]
[1625313759943,2.56974623,2211.7,2209.6,1.15]
[1625313760051,4.24153382,2212.0,2209.6,1.15]
[1625313760199,5.30191728,2212.2,2209.6,3.5859]
[1625313760298,3.73481728,2212.2,2209.6,4.5859]
[1625313760399,6.6273966,2212.4,2209.8,1.0]
[1625313760500,2.20527,2213.2,2212.3,4.41054]
[1625313760599,2.20527,2213.2,2212.3,7.11614]
[1625313760703,8.36365524,2212.8,2212.7,39.704]
[1625313760806,6.41255524,2212.8,2212.3,7.11614]
[1625313760906,4.12925524,2212.8,2212.3,7.11614]
[1625313761103,14.2653,2215.6,2212.3,7.11614]
[1625313761254,5.68103456,2213.1,2212.7,39.6968]
[1625313761404,3.80583456,2213.1,2212.7,39.6968]
[1625313761505,2.86083456,2213.1,2212.7,39.6968]
[1625313761658,2.64781517,2213.3,2212.8,19.212478]
[1625313762457,2.64781517,2213.3,2213.2,4.41054]
[1625313762709,2.20527,2214.2,2213.2,4.41054]
[1625313762809,2.20527,2214.2,2213.2,20.730615]
[1625313763110,14.0,2216.8,2213.2,20.730615]
[1625313763211,2.31,2213.6,2213.2,20.730615]
[1625313763310,9.0,2216.8,2213.2,20.730615]
[1625313763413,9.0,2216.8,2213.2,25.730615]
[1625313763609,14.2153,2215.6,2213.2,25.730615]
[1625313764218,14.2153,2215.6,2213.7,1.15]
[1625313764313,14.2153,2215.6,2213.7,4.4441]
[1625313764516,2.20527,2215.4,2215.1,5.42177]
[1625313764812,2.20527,2215.6,2215.1,5.42177]
[1625313764912,9.0,2216.8,2215.1,5.42177]
[1625313765313,9.0,2216.8,2215.2,16.367297]
[1625313765924,9.0,2216.8,2215.1,5.42177]
[1625313766425,46.626,2216.7,2215.1,5.42177]
[1625313766524,2.20527,2215.9,2215.8,2.20527]
[1625313766634,2.20527,2215.9,2215.8,5.69627]
[1625313767036,2.20527,2215.9,2215.8,3.491]
[1625313767987,9.0,2216.8,2215.8,3.491]
[1625313768488,2.20527,2216.5,2216.4,2.20527]
[1625313768641,2.20527,2216.5,2216.4,5.69397]
[1625313770391,2.20527,2216.5,2213.9,5.0]
[1625313770497,2.20527,2215.5,2215.4,2.20527]
[1625313770844,2.20527,2215.5,2213.8,1.0]
[1625313770946,2.20527,2215.5,2213.7,4.4441]
[1625313771044,46.53077,2215.5,2213.7,1.15]